bitfinex-derivatives/quotes_ETHF0:USTF0_20250130
["timestamp","ask_amount","ask_price","bid_price","bid_amount"]
[1738254011931,3.2078,3266.0,3265.4,2.61944935]
[1738254011932,0.61238,3265.8,3265.4,3.23187935]
[1738254012223,0.6124,3265.7,3265.4,2.61944935]
[1738254012422,0.6124,3265.7,3265.4,3.23188935]
[1738254012618,3.2078,3266.0,3265.4,2.61944935]
[1738254012925,0.61238,3265.8,3265.5,0.61242]
[1738254013127,0.6124,3265.7,3265.4,2.61944935]
[1738254013324,0.61241,3265.6,3265.4,2.61944935]
[1738254013526,0.61239,3265.7,3265.4,3.23188935]
[1738254013724,3.2078,3266.0,3265.4,2.61944935]
[1738254014021,3.82014,3266.0,3265.7,3.23182935]
[1738254014725,3.11991193,3266.0,3265.9,0.61235]
[1738254015618,3.11991193,3266.0,3265.8,1.65106]
[1738254016227,3.11991193,3266.0,3265.8,1.0387]
[1738254016829,3.11991193,3266.0,3265.8,1.65107]
[1738254017124,3.11991193,3266.0,3265.8,1.0387]
[1738254017326,0.61236,3265.9,3265.7,2.61944935]
[1738254017625,3.11991193,3266.0,3265.7,2.61944935]
[1738254018432,3.11991193,3266.0,3265.7,3.23182935]
[1738254018726,3.11991193,3266.0,3265.7,2.61944935]
[1738254018927,3.11991193,3266.0,3265.8,0.61236]
[1738254019434,0.61235,3265.9,3265.7,2.61944935]
[1738254019730,3.11991193,3266.0,3265.7,2.61944935]
[1738254020224,3.11991193,3266.0,3265.4,2.61944935]
[1738254020424,1.0546,3265.9,3265.3,1.0502]
[1738254020628,0.61243,3265.5,3265.3,1.0502]
[1738254020825,1.0546,3265.9,3265.2,3.2078]
[1738254021025,1.53095,3265.8,3265.2,3.2078]
[1738254021228,0.61245,3265.4,3265.2,3.2078]
[1738254021424,3.2078,3265.5,3265.1,2.62404852]
[1738254021626,0.61248,3265.2,3265.1,0.00459917]
[1738254024630,1.65847,3265.3,3265.1,0.61708917]
[1738254024934,3.2078,3265.5,3265.1,2.62404852]
[1738254025234,3.2078,3265.5,3265.4,3.23188935]
[1738254025630,0.61238,3265.8,3265.6,0.6124]
[1738254025828,0.61241,3265.7,3265.4,3.23187935]
[1738254026041,0.61241,3265.7,3265.4,2.61944935]
[1738254026229,0.61241,3265.7,3265.2,0.5195]
[1738254026230,0.61242,3265.5,3265.3,0.61246]
[1738254026434,1.0546,3265.9,3265.2,0.5195]
[1738254026933,0.61241,3265.6,3265.4,0.61243]
[1738254027328,0.61244,3265.5,3265.3,0.61246]
[1738254027833,1.53093,3265.8,3265.1,2.62404852]
[1738254028030,3.2078,3265.6,3265.1,2.62404852]
[1738254028235,0.61243,3265.5,3265.3,0.61246]
[1738254028629,0.61243,3265.5,3265.4,2.61944935]
[1738254029640,3.2078,3265.6,3265.4,2.61944935]
[1738254029832,0.61238,3265.8,3265.4,2.61944935]
[1738254030035,1.0546,3265.9,3265.4,2.61944935]
[1738254030229,3.2078,3266.0,3265.9,0.61235]
[1738254030428,0.61235,3265.9,3265.7,3.23182935]
[1738254030735,3.2078,3266.0,3265.6,3.2078]
[1738254030934,0.61242,3265.5,3265.4,2.61944935]
[1738254031139,0.5069,3265.9,3265.4,2.61944935]
[1738254031336,0.61238,3265.8,3265.5,0.61241]
[1738254031536,0.5069,3265.9,3265.2,3.7147]
[1738254031837,0.61243,3265.5,3265.3,0.61244]
[1738254032033,0.5342,3265.8,3265.2,3.7147]
[1738254032243,0.61246,3265.3,3265.1,2.62404852]
[1738254032535,0.61248,3265.2,3265.1,2.62404852]
[1738254032735,3.2078,3265.6,3265.1,2.62404852]
[1738254033138,0.61248,3265.2,3265.1,0.00459917]
[1738254033329,3.82028,3265.2,3265.1,0.00459917]
[1738254034538,0.5342,3265.8,3265.1,2.62404852]
[1738254034735,0.5069,3265.9,3265.5,2.61944935]
[1738254035640,0.5069,3265.9,3265.6,0.61241]
[1738254035837,0.5069,3265.9,3265.5,2.61944935]
[1738254036343,0.5069,3265.9,3265.6,0.61239]
[1738254036539,0.5069,3265.9,3265.8,0.61237]
[1738254036843,0.5069,3265.9,3265.7,0.61237]
[1738254037049,0.5069,3265.9,3265.5,2.61944935]
[1738254037346,3.2078,3266.0,3265.8,3.23181935]
[1738254037944,3.2078,3266.0,3265.8,3.23180935]
[1738254038547,3.2078,3266.0,3265.8,2.61944935]
[1738254038844,3.2078,3266.0,3265.9,0.61235]
[1738254039844,3.2078,3266.0,3265.8,2.61944935]
[1738254040047,0.61235,3265.9,3265.8,2.61944935]
[1738254040245,3.2078,3266.0,3265.8,2.61944935]
[1738254040246,3.82014,3266.0,3265.8,2.61944935]
[1738254041343,0.61235,3265.9,3265.8,2.61944935]
[1738254041542,0.61238,3265.8,3265.5,3.23186935]
[1738254041848,0.6124,3265.7,3265.5,2.61944935]
[1738254043150,3.2078,3266.0,3265.5,2.61944935]
[1738254043151,0.61239,3265.8,3265.5,2.61944935]
[1738254043350,0.61241,3265.6,3265.5,2.61944935]
[1738254043646,1.14239,3265.7,3265.5,2.61944935]
[1738254043845,0.53,3265.7,3265.2,6.31904935]
[1738254044250,0.61241,3265.6,3265.2,6.93151935]
[1738254044546,0.61241,3265.6,3265.3,0.61246]
[1738254044743,0.53,3265.7,3265.2,5.82724935]
[1738254044947,3.2078,3265.5,3265.1,0.00459917]
[1738254045149,0.61247,3265.3,3265.1,0.00459917]
[1738254045445,0.61245,3265.4,3265.1,0.61709917]
[1738254045646,3.2078,3265.5,3265.2,2.61944935]
[1738254045849,3.2078,3265.5,3265.4,0.61244]
[1738254046151,3.2078,3265.5,3265.3,0.61245]
[1738254046640,0.61245,3265.4,3265.2,2.61944935]
[1738254046841,3.2078,3265.5,3265.1,0.00459917]
[1738254047046,3.2078,3265.5,3265.2,2.61944935]
[1738254047245,3.2078,3265.5,3265.4,0.61244]
[1738254047746,3.2078,3266.0,3265.2,3.13284935]
[1738254048052,3.82014,3266.0,3265.7,3.23182935]
[1738254048253,3.2078,3266.0,3265.8,0.61236]
[1738254049141,3.82013,3266.0,3265.8,0.61236]
[1738254049451,3.82013,3266.0,3265.7,2.61944935]
[1738254049654,3.82013,3266.0,3265.7,3.23182935]
[1738254049856,3.2078,3266.0,3265.8,0.61237]
[1738254050147,0.61237,3265.8,3265.7,2.61944935]
[1738254050548,0.61236,3265.9,3265.7,3.23183935]
[1738254050742,3.2078,3266.0,3265.7,2.61944935]
[1738254050945,3.2078,3266.0,3265.9,0.61235]
[1738254051446,3.2078,3266.8,3265.8,1.53089]
[1738254051646,3.81999,3266.8,3266.6,3.23166935]
[1738254051846,3.2078,3266.8,3266.6,2.61944935]
[1738254052049,3.81999,3266.8,3266.6,2.61944935]
[1738254052246,3.2078,3266.8,3266.6,2.61944935]
[1738254052646,3.81999,3266.8,3266.6,3.23165935]
[1738254052864,3.2078,3266.8,3266.6,2.61944935]
[1738254053047,3.2078,3266.8,3266.7,0.6122]
[1738254053753,3.2078,3266.8,3266.6,2.61944935]
[1738254053955,3.81998,3266.8,3266.6,3.23165935]
[1738254054155,3.2078,3266.8,3266.6,2.61944935]
[1738254054345,0.61221,3266.7,3266.4,0.5316]
[1738254054550,0.61221,3266.7,3266.4,1.14385]
[1738254054751,3.2078,3266.8,3266.5,0.61223]
[1738254054957,3.2078,3266.8,3266.6,2.61944935]
[1738254055357,3.2078,3266.8,3266.6,3.23164935]
[1738254055753,3.2078,3266.8,3266.7,0.6122]
[1738254056067,3.81999,3266.8,3266.6,3.23165935]
[1738254056357,3.81999,3266.8,3266.6,2.61944935]
[1738254056951,0.6122,3266.7,3266.6,2.61944935]
[1738254057656,0.6122,3266.7,3266.6,3.23166935]
[1738254058349,0.6122,3266.7,3266.6,2.61944935]
[1738254060359,0.61224,3266.6,3266.4,0.61224]
[1738254060755,0.61224,3266.5,3266.3,3.23171935]
[1738254060950,0.61231,3266.1,3266.0,2.61944935]
[1738254061557,3.7475,3266.4,3266.0,2.61944935]
[1738254061755,2.56751,3266.8,3266.3,2.61944935]
[1738254062161,0.61226,3266.4,3266.3,2.61944935]
[1738254063063,1.53067,3266.4,3265.9,0.4957]
[1738254063262,0.61233,3266.0,3265.9,0.4957]
[1738254064664,0.61231,3266.1,3265.9,0.4957]
[1738254064961,1.53051,3266.7,3266.0,2.61944935]
[1738254065162,0.61229,3266.3,3266.0,3.23177935]
[1738254065763,1.53051,3266.7,3266.0,2.61944935]
[1738254066059,1.53051,3266.7,3265.9,1.0208]
[1738254066060,3.2078,3266.4,3265.9,0.4957]
[1738254066261,0.61232,3266.1,3265.9,0.4957]
[1738254066462,3.2078,3266.4,3265.9,0.4957]
[1738254066463,0.61233,3266.0,3265.9,0.4957]
[1738254067054,0.61237,3265.8,3265.7,2.61944935]
[1738254067263,3.2078,3266.0,3265.5,0.5251]
[1738254067562,0.6124,3265.7,3265.5,0.5251]
[1738254067750,0.61239,3265.7,3265.5,0.5251]
[1738254068265,3.2078,3266.0,3265.5,0.5251]
[1738254068469,0.61241,3265.6,3265.4,3.11874935]
[1738254068760,3.2078,3266.0,3265.4,3.11874935]
[1738254069065,3.2078,3266.0,3265.3,3.2203]
[1738254069368,3.2078,3266.0,3265.3,0.0125]
[1738254069369,0.61244,3265.4,3265.3,0.0125]
[1738254070155,0.61248,3265.2,3265.1,0.00459917]
[1738254070355,0.61248,3265.3,3265.1,0.00459917]
[1738254070566,0.61248,3265.2,3265.1,2.62404852]
[1738254070765,0.61248,3265.2,3265.1,2.62237619]
[1738254071075,0.61248,3265.2,3265.1,0.00292684]
[1738254071868,3.82028,3265.2,3265.1,0.00292684]
[1738254072272,0.61258,3264.7,3264.5,3.76384935]
[1738254072663,3.2078,3265.2,3264.5,3.15124935]
[1738254072965,0.61254,3264.9,3264.7,0.61256]
[1738254073361,0.61254,3264.9,3264.5,3.15584142]
[1738254073665,0.61254,3264.9,3264.8,2.61944935]
[1738254074167,0.61253,3265.0,3264.8,3.23199935]
[1738254074370,3.2078,3265.2,3265.1,0.6125]
[1738254074571,3.2078,3265.2,3265.1,3.23194935]
[1738254074773,0.61246,3265.4,3265.2,0.61247]
[1738254074966,0.53504863,3265.5,3265.1,2.61944935]
[1738254075464,0.53504863,3265.5,3265.4,0.61244]
[1738254075465,0.00164863,3265.5,3265.4,0.61244]
[1738254075667,0.61407863,3265.5,3265.3,0.61245]
[1738254075866,0.00164863,3265.5,3265.2,1.10627]
[1738254076061,0.00164863,3265.5,3265.4,3.23188935]
[1738254076266,0.00164863,3265.5,3265.4,2.61944935]
[1738254076468,0.00164863,3265.5,3265.4,3.23188935]
[1738254078271,0.00164863,3265.5,3265.4,2.61944935]
[1738254079075,0.00164863,3265.5,3265.4,3.23188935]
[1738254079470,0.00164863,3265.5,3265.4,6.43968935]
[1738254079669,0.61231,3266.2,3265.4,6.06701154]
[1738254079870,3.2078,3266.4,3265.8,2.61944935]
[1738254080071,0.61235,3265.9,3265.8,2.61944935]
[1738254080271,0.61239,3265.7,3265.5,2.61944935]
[1738254080574,3.2078,3266.0,3265.5,2.61944935]
[1738254080773,1.53380684,3265.9,3265.4,3.2078]
[1738254080966,0.61242,3265.6,3265.4,3.2078]
[1738254081167,0.61242,3265.5,3265.4,3.2078]
[1738254081677,0.61241,3265.6,3265.4,3.2078]
[1738254081868,0.61241,3265.6,3265.2,3.72571935]
[1738254082065,0.52382684,3265.9,3265.2,3.72571935]
[1738254082270,0.61241,3265.6,3265.2,3.72572935]
[1738254082566,0.61246,3265.3,3265.2,0.4938]
[1738254082968,1.53093,3265.8,3265.2,0.4938]
[1738254083274,0.61246,3265.3,3265.2,0.4938]
[1738254083470,0.61246,3265.4,3265.2,0.4938]
[1738254083670,1.56082684,3265.9,3265.2,3.11324935]
[1738254083971,0.61244,3265.5,3265.2,3.11324935]
[1738254084167,1.56082684,3265.9,3265.2,3.11324935]
[1738254084367,0.61246,3265.3,3265.2,3.11324935]
[1738254084572,0.61245,3265.4,3265.2,3.11324935]
[1738254084880,0.61246,3265.3,3265.2,3.11324935]
[1738254085071,0.61245,3265.4,3265.2,3.11324935]
[1738254085377,0.61244,3265.5,3265.2,3.72571935]
[1738254086574,3.09173684,3265.9,3265.2,3.72571935]
[1738254086575,0.61245,3265.4,3265.2,3.72571935]
[1738254087376,3.09173684,3265.9,3265.2,2.61944935]
[1738254087574,3.2078,3265.6,3264.9,5.82724935]
[1738254087768,0.61251,3265.1,3264.9,6.43977935]
[1738254087972,4.73887,3265.6,3264.9,6.43977935]
[1738254087973,2.14351,3265.5,3264.9,5.82724935]
[1738254088276,1.14505,3265.4,3265.1,0.61249]
[1738254088779,3.2078,3265.6,3265.5,0.61242]
[1738254088974,0.00292684,3265.9,3265.8,0.61237]
[1738254089175,0.00292684,3265.9,3265.6,1.0074]
[1738254089880,0.61237,3265.8,3265.6,0.4918]
[1738254090180,0.00292684,3265.9,3265.6,0.4918]
[1738254090479,0.00292684,3265.9,3265.7,0.61238]
[1738254090780,0.00292684,3265.9,3265.8,0.61237]
[1738254091376,0.61527684,3265.9,3265.7,0.61238]
[1738254091577,0.00292684,3265.9,3265.6,0.4918]
[1738254091881,0.61528684,3265.9,3265.7,0.61239]
[1738254092080,0.00292684,3265.9,3265.8,3.23181935]
[1738254092288,3.2078,3266.5,3265.8,6.43961935]
[1738254092579,3.2078,3266.5,3266.4,0.61226]
[1738254092781,4.2423,3267.1,3266.4,2.61944935]
[1738254092972,4.2423,3267.1,3266.8,2.61944935]
[1738254093175,4.2423,3267.1,3266.8,3.23162935]
[1738254093176,0.61216,3267.0,3266.8,3.23162935]
[1738254093486,0.61215,3267.0,3266.8,0.61218]
[1738254093682,0.61216,3267.0,3266.8,0.61216]
[1738254093974,3.7384,3267.1,3266.8,0.61216]
[1738254094379,3.7384,3267.1,3266.6,0.00459207]
[1738254094576,3.82,3266.7,3266.6,0.00459207]
[1738254094985,4.857,3266.7,3266.6,0.00459207]
[1738254096077,3.2078,3266.7,3266.6,0.00459207]
[1738254096376,3.2078,3266.7,3266.6,0.61681207]
[1738254097984,3.82,3266.7,3266.6,0.61681207]
[1738254098281,3.82,3266.7,3266.6,0.49579207]
[1738254100176,3.82,3266.7,3266.6,0.00459207]
[1738254100777,0.61239,3265.7,3265.6,2.61944935]
[1738254100978,0.61244,3265.4,3265.3,3.14904935]
[1738254103381,0.61244,3265.4,3265.3,2.61944935]
[1738254103679,0.6125,3265.1,3265.0,2.62404142]
[1738254104085,0.61245,3265.4,3265.1,0.61248]
[1738254104386,0.61244,3265.4,3265.3,2.61944935]
[1738254105878,0.61243,3265.5,3265.3,2.61944935]
[1738254106382,0.61244,3265.4,3265.3,2.61944935]
[1738254107878,1.04159207,3265.7,3265.3,2.61944935]
[1738254108078,1.04159207,3265.7,3265.6,2.61944935]
[1738254108079,0.00459207,3265.7,3265.6,2.61944935]
[1738254108692,0.61225,3266.5,3266.2,0.61228]
[1738254108882,2.14264,3266.8,3266.4,2.61944935]
[1738254109083,0.61224,3266.5,3266.4,2.61944935]
[1738254109991,0.61222,3266.6,3266.4,3.23169935]
[1738254110193,0.61224,3266.5,3266.4,2.61944935]
[1738254111387,0.61226,3266.4,3266.3,0.4887]
[1738254111691,0.61218,3266.8,3266.3,1.10097]
[1738254111896,0.61224,3266.5,3266.3,1.10097]
[1738254112789,4.2448,3266.9,3266.3,0.4887]
[1738254113094,0.61226,3266.4,3266.3,0.4887]
[1738254113593,0.61226,3266.4,3265.8,2.61944935]
[1738254113594,0.61235,3265.9,3265.8,2.61944935]
[1738254113793,3.2078,3266.4,3265.7,0.5049]
[1738254113992,3.2078,3266.4,3265.5,3.15044935]
[1738254113993,0.61239,3265.7,3265.5,3.15044935]
[1738254114396,1.53082,3266.1,3265.5,3.15044935]
[1738254114595,0.61246,3265.3,3265.2,2.61944935]
[1738254114796,0.6125,3265.1,3265.0,3.21239207]
[1738254114996,0.61242,3265.5,3265.0,3.21239207]
[1738254115201,0.61245,3265.4,3265.2,2.61944935]
[1738254115387,0.61245,3265.4,3265.3,0.4877]
[1738254115693,0.61244,3265.4,3265.3,0.4877]
[1738254115894,0.61243,3265.5,3265.3,0.4877]
[1738254117093,3.2078,3265.6,3265.3,0.4877]
[1738254117296,0.61236,3265.9,3265.6,0.61239]
[1738254117492,3.82014,3266.0,3265.7,0.61238]
[1738254117694,3.82014,3266.0,3265.8,2.61944935]
[1738254118393,3.2078,3266.0,3265.8,2.61944935]
[1738254118599,3.2078,3266.0,3265.9,0.61235]
[1738254118899,1.64928,3266.3,3266.0,0.61232]
[1738254119398,1.037,3266.3,3266.1,0.5372]
[1738254119594,1.64929,3266.3,3266.1,0.5372]
[1738254120400,1.64929,3266.3,3266.1,1.14951]
[1738254120796,1.64929,3266.3,3266.1,0.5372]
[1738254120997,0.61229,3266.2,3266.1,0.5372]
[1738254121201,1.037,3266.3,3266.1,0.5372]
[1738254121400,1.64928,3266.3,3266.1,0.5372]
[1738254121604,1.037,3266.3,3266.1,0.5372]
[1738254121800,0.5361,3266.5,3266.1,0.5372]
[1738254122003,3.2078,3266.6,3266.1,6.91461835]
[1738254122299,0.61226,3266.4,3266.2,0.61229]
[1738254122807,0.61229,3266.2,3265.8,0.5213]
[1738254123001,0.61239,3265.7,3265.4,1.10013]
[1738254123207,0.61239,3265.7,3265.4,1.10014]
[1738254123401,0.61238,3265.8,3265.5,0.61242]
[1738254123606,1.0311,3266.1,3265.4,0.4877]
[1738254123803,0.61241,3265.6,3265.4,0.4877]
[1738254124007,3.2078,3265.8,3265.0,0.00459207]
[1738254124310,0.61245,3265.4,3265.1,0.61249]
[1738254124505,0.61244,3265.5,3265.2,0.61248]
[1738254124806,3.2078,3265.8,3265.3,0.61246]
[1738254125006,3.2078,3265.8,3265.4,0.5382]
[1738254125304,0.61246,3265.3,3265.2,3.16961835]
[1738254125502,0.61246,3265.4,3265.2,3.16961835]
[1738254125908,0.61246,3265.3,3265.2,3.16961835]
[1738254126097,2.1434,3265.7,3265.0,0.00459207]
[1738254126305,0.61246,3265.4,3265.1,0.61249]
[1738254126607,0.6125,3265.1,3265.0,0.00459207]
[1738254127200,0.5295,3265.3,3265.0,0.00459207]
[1738254127401,1.14197,3265.3,3265.0,0.61711207]
[1738254128307,3.2078,3265.4,3265.0,0.00459207]
[1738254128503,0.61246,3265.3,3265.0,0.61710207]
[1738254128706,3.2078,3265.4,3265.0,0.00459207]
[1738254128905,0.61247,3265.3,3265.0,0.61711207]
[1738254129409,3.2078,3265.4,3265.0,0.00459207]
[1738254129608,0.6125,3265.1,3265.0,0.00459207]
[1738254129803,3.2078,3265.4,3265.0,0.00459207]
[1738254130110,3.2078,3265.4,3265.2,0.61248]
[1738254130403,1.037,3265.6,3265.0,0.52459207]
[1738254130607,0.61249,3265.2,3265.0,0.00459207]
[1738254130806,0.6125,3265.1,3265.0,0.00459207]
[1738254131004,2.56805,3265.6,3265.0,0.00459207]
[1738254131207,0.6125,3265.1,3265.0,0.00459207]
[1738254132105,3.2078,3265.4,3265.0,0.00459207]
[1738254132310,3.2078,3265.4,3265.3,3.16961835]
[1738254132698,3.82024,3265.4,3265.3,3.16961835]
[1738254134407,3.82024,3265.4,3265.0,0.00459207]
[1738254134408,0.61249,3265.2,3265.0,0.61710207]
[1738254134708,0.61247,3265.3,3265.1,0.61249]
[1738254135506,3.2078,3265.4,3265.0,0.61710207]
[1738254135709,0.61247,3265.3,3265.1,0.6125]
[1738254136010,0.61247,3265.3,3265.0,0.61710207]
[1738254136313,0.61249,3265.2,3265.0,0.00459207]
[1738254136612,0.61248,3265.3,3265.0,0.61711207]
[1738254137305,3.82026,3265.4,3265.1,0.61249]
[1738254137509,0.61249,3265.2,3265.0,0.00459207]
[1738254137710,3.2078,3265.4,3265.0,0.00459207]
[1738254137913,0.61247,3265.3,3265.0,0.61710207]
[1738254138111,3.2078,3265.4,3265.0,0.00459207]
[1738254138414,0.61247,3265.3,3265.0,0.61710207]
[1738254138621,3.2078,3265.4,3265.0,0.00459207]
[1738254138808,3.2078,3265.4,3265.2,2.61658482]
[1738254139014,0.61246,3265.3,3265.2,2.61658482]
[1738254140710,0.4951,3265.7,3265.2,2.61658482]
[1738254140914,3.2078,3265.8,3265.7,0.61239]
[1738254141113,0.61233,3266.1,3265.8,0.61236]
[1738254141411,4.73856,3266.2,3265.6,2.61658482]
[1738254141617,0.61239,3265.7,3265.6,2.61658482]
[1738254141809,0.61239,3265.7,3265.1,0.6125]
[1738254141810,1.53098,3265.7,3265.1,0.6125]
[1738254142014,0.61241,3265.6,3265.3,3.22903482]
[1738254142313,0.5102,3265.7,3265.3,2.61658482]
[1738254142512,0.61244,3265.4,3265.3,2.61658482]
[1738254143019,0.61242,3265.6,3265.3,3.22903482]
[1738254143810,3.2078,3265.8,3265.3,2.61658482]
[1738254144016,3.82009,3266.3,3265.7,0.61239]
[1738254144213,3.2078,3266.3,3265.9,2.61658482]
[1738254144523,0.6123,3266.2,3265.9,3.22892482]
[1738254144816,3.2078,3266.3,3266.0,0.61233]
[1738254145015,0.61231,3266.2,3265.9,3.22892482]
[1738254145605,3.2078,3266.3,3266.0,0.61232]
[1738254146211,0.6123,3266.2,3266.0,0.61232]
[1738254146416,3.2078,3266.3,3265.9,2.61658482]
[1738254146621,0.5188,3266.2,3265.6,3.22898482]
[1738254146812,0.61233,3266.1,3265.8,0.61237]
[1738254147018,1.5698,3266.4,3265.9,2.61658482]
[1738254147213,1.5698,3266.4,3266.1,0.61231]
[1738254147214,0.61228,3266.3,3266.1,0.61231]
[1738254147410,1.5698,3266.4,3265.9,2.61658482]
[1738254147615,1.10654,3266.5,3266.3,0.61227]
[1738254147917,1.10654,3266.5,3266.2,3.22886482]
[1738254148117,0.4943,3266.5,3266.4,0.61226]
[1738254148421,1.10655,3266.5,3266.3,0.61227]
[1738254148620,0.4943,3266.5,3266.2,3.13218482]
[1738254148810,0.4943,3266.5,3266.4,0.61226]
[1738254149015,0.4943,3266.5,3266.3,0.61227]
[1738254149222,0.4943,3266.5,3266.2,3.13218482]
[1738254149520,0.61227,3266.3,3266.2,3.13218482]
[1738254149711,0.4943,3266.5,3266.2,3.13218482]
[1738254150113,0.4943,3266.5,3266.1,3.2078]
[1738254150114,0.61229,3266.2,3266.1,3.2078]
[1738254150916,0.61229,3266.2,3265.3,1.53114]
[1738254150917,0.61239,3265.7,3265.6,5.82438482]
[1738254151117,1.53084,3266.0,3265.3,5.82438482]
[1738254151322,0.61239,3265.7,3265.6,2.61658482]
[1738254151921,0.61244,3265.4,3265.3,2.61658482]
[1738254152122,0.61244,3265.4,3265.0,0.00459207]
[1738254152123,0.6125,3265.1,3265.0,0.00459207]
[1738254152821,0.5078,3265.2,3265.0,0.00459207]
[1738254153019,3.2078,3265.4,3265.2,0.61247]
[1738254153219,0.61242,3265.6,3265.3,3.2078]
[1738254153420,0.61243,3265.5,3265.2,3.17185189]
[1738254155418,0.61242,3265.6,3265.2,3.78432189]
[1738254155622,0.61243,3265.5,3265.2,3.78432189]
[1738254155824,0.61243,3265.5,3265.2,3.17185189]
[1738254156223,0.5078,3265.7,3265.2,3.17185189]
[1738254156224,0.61245,3265.4,3265.2,3.17185189]
[1738254157329,0.5078,3265.7,3265.2,3.17185189]
[1738254157625,0.61242,3265.6,3265.2,3.78432189]
[1738254157829,1.1202,3265.7,3265.3,3.82025]
[1738254158028,0.5078,3265.7,3265.4,0.61243]
[1738254158436,3.82014,3266.0,3265.6,3.78424189]
[1738254158731,0.61239,3265.7,3265.6,3.17185189]
[1738254159429,3.2078,3266.0,3265.3,3.2078]
[1738254159620,0.61244,3265.4,3265.3,3.2078]
[1738254161132,0.6125,3265.1,3265.0,0.49489207]
[1738254161334,0.61249,3265.2,3265.0,1.10740207]
[1738254161829,1.036,3265.7,3265.2,0.61246]
[1738254162134,3.2078,3266.0,3265.2,0.61246]
[1738254162135,0.61243,3265.5,3265.3,3.2078]
[1738254162831,0.61243,3265.5,3265.3,0.61246]
[1738254163029,0.61243,3265.5,3265.2,3.78432189]
[1738254163432,1.11278,3265.8,3265.5,0.61241]
[1738254163632,0.5004,3265.8,3265.6,3.17185189]
[1738254164134,0.5004,3265.8,3265.3,3.2078]
[1738254164338,3.2078,3265.6,3265.2,3.17185189]
[1738254164634,3.2078,3265.6,3265.0,0.49489207]
[1738254164635,0.6125,3265.1,3265.0,0.00459207]
[1738254166333,0.61249,3265.2,3265.0,0.00459207]
[1738254166528,1.0048,3265.5,3265.0,0.00459207]
[1738254166727,0.61249,3265.2,3265.0,0.00459207]
[1738254166927,0.6125,3265.1,3265.0,0.00459207]
[1738254167128,2.5359,3265.5,3265.0,0.00459207]
[1738254167335,0.6125,3265.2,3265.0,0.00459207]
[1738254167939,0.6125,3265.1,3265.0,0.00459207]
[1738254168237,1.1489,3265.1,3265.0,0.00459207]
[1738254171528,0.5364,3265.1,3265.0,0.61711207]
[1738254171727,0.5364,3265.1,3265.0,0.00459207]
[1738254171932,1.1489,3265.1,3265.0,0.00459207]
[1738254173543,0.5364,3265.1,3265.0,0.00459207]
[1738254174040,0.5364,3265.1,3265.0,0.61711207]
[1738254174432,1.0048,3265.5,3265.0,0.00459207]
[1738254174735,0.61248,3265.2,3265.1,2.61685179]
[1738254174940,1.0048,3265.5,3265.0,0.00459207]
[1738254174941,0.6125,3265.1,3265.0,0.00459207]
[1738254178831,0.6125,3265.1,3265.0,0.00297761]
[1738254179340,1.6485,3265.1,3265.0,0.00189502]
[1738254180344,0.6125,3265.1,3265.0,0.00189502]
[1738254180545,1.6485,3265.1,3265.0,0.00189502]
[1738254181348,1.6485,3265.1,3264.1,3.2078]
[1738254181349,1.53144,3264.8,3264.1,3.2078]
[1738254181645,3.2078,3264.6,3264.2,2.61685179]
[1738254181847,0.61262,3264.5,3264.3,0.61264]
[1738254182146,1.545,3264.7,3264.2,2.61685179]
[1738254182341,2.15759,3264.7,3264.6,2.61685179]
[1738254182544,2.15757,3264.7,3264.6,2.61685179]
[1738254182848,0.509,3264.7,3264.6,3.22944179]
[1738254183039,1.12157,3264.7,3264.6,2.61685179]
[1738254183743,0.509,3264.7,3264.3,3.71858179]
[1738254184045,0.509,3264.7,3264.3,3.10595179]
[1738254184242,0.61261,3264.5,3264.3,3.71859179]
[1738254184648,0.61262,3264.5,3264.3,3.22949179]
[1738254184945,1.12158,3264.7,3264.5,0.61261]
[1738254185143,0.509,3264.7,3264.3,2.61685179]
[1738254185352,0.61259,3264.6,3264.4,1.12392]
[1738254185548,0.61259,3264.6,3264.5,0.5069]
[1738254186450,1.12158,3264.7,3264.5,1.1195]
[1738254186638,0.61259,3264.6,3264.5,0.5069]
[1738254186837,0.509,3264.7,3264.5,1.1195]
[1738254187036,3.21049705,3265.4,3264.6,2.61685179]
[1738254187242,0.00269705,3265.4,3265.3,6.43711179]
[1738254188936,0.497,3266.3,3265.3,6.43711179]
[1738254189137,3.2078,3267.2,3266.2,5.82465179]
[1738254189341,0.5072,3267.4,3267.0,2.61685179]
[1738254189545,0.61206,3267.5,3267.3,2.61685179]
[1738254189849,4.73766,3268.1,3267.3,2.61685179]
[1738254189850,3.715,3268.1,3267.3,2.61685179]
[1738254190044,0.61197,3268.0,3267.6,2.61685179]
[1738254190243,0.61198,3267.9,3267.6,2.61685179]
[1738254190649,0.61386502,3268.0,3267.4,3.17087233]
[1738254190843,0.61386502,3268.0,3267.6,0.61202]
[1738254191041,0.61198,3267.9,3267.6,0.61202]
[1738254191743,0.00189502,3268.0,3267.8,3.16628026]
[1738254191937,0.00189502,3268.0,3267.8,3.77827026]
[1738254192143,0.00189502,3268.0,3267.8,3.16628026]
[1738254193252,0.00189502,3268.0,3267.9,0.61197]
[1738254194244,0.00189502,3268.0,3267.8,3.16628026]
[1738254195745,0.00189502,3268.0,3267.8,3.16399839]
[1738254196146,0.61199,3267.9,3267.6,3.2078]
[1738254196350,0.00189502,3268.0,3267.6,3.2078]
[1738254197042,0.00189502,3268.0,3267.8,3.16628026]
[1738254197450,0.61386502,3268.0,3267.8,3.16628026]
[1738254197644,0.00189502,3268.0,3267.8,3.16628026]
[1738254197850,0.61386502,3268.0,3267.8,3.16628026]
[1738254198159,0.00189502,3268.0,3267.8,3.16628026]
[1738254198552,0.00189502,3268.0,3267.8,3.77826026]
[1738254198759,0.61197,3267.9,3267.8,3.16628026]
[1738254198959,0.00189502,3268.0,3267.6,3.2078]
[1738254199149,0.61198,3267.9,3267.6,3.2078]
[1738254199458,0.00189502,3268.0,3267.6,3.2078]
[1738254199656,0.61201,3267.8,3267.6,3.2078]
[1738254199854,0.61198,3267.9,3267.6,3.2078]
[1738254200050,0.61201,3267.7,3267.5,0.5072]